Cogmind - Beta 13 @@@ ROGUE MODE // 2024.04.10 @ 13:55:52 Player: Ben Meat Bible Result: Destroyed by Y-45 Defender with Heavy Assault Rifle Performance ------------- Evolutions (1) 500 Regions Visited (3) 600 Robots Destroyed (34) 170 Value Destroyed (705) 705 Prototype IDs (1) 20 Alien Tech Used (0) 0 Bonus (0) 0 TOTAL SCORE: 1995 Bonus ------- None Cogmind --------- Core Integrity 0/400 Matter 300/300 Energy 100/100 System Corruption 1% Temperature Cool (27) Movement Core (50) Location -9/Materials Parts ------- > --- POWER (1) -------- (None) > --- PROPULSION (4) --- (None) > --- UTILITY (2) ------ (None) > --- WEAPON (2) ------- (None) > --- INVENTORY (5) ---- Small Storage Unit Weight Redist. System ECM Suite Long-range Tractor Beam Peak State ------------ > --- POWER ------------ Light Nuclear Core > --- PROPULSION ------- Improved Hover Unit Flight Unit Flight Unit > --- UTILITY ---------- Signal Interpreter Hacking Suite > --- WEAPON ----------- Datajack Ripper > --- INVENTORY -------- Ion Engine Small Storage Unit ECM Suite Long-range Tractor Beam EM Pulse Gun [Rating: 16] Favorites ----------- Power Ion Engine Engine Ion Engine Power Core Light Nuclear Core Propulsion Flight Unit Wheel Wheel Hover Unit Improved Hover Unit Flight Unit Flight Unit Utility Signal Interpreter Device ECM Suite Storage Small Storage Unit Processor Signal Interpreter Hackware Hacking Suite Weapon Ripper Energy Gun EM Pulse Gun Ballistic Gun Light Assault Rifle Launcher Grenade Launcher Slashing Weapon Ripper Special Melee Weapon Datajack Build | -11 -10 -10 -9 ------- Run | Yrd Mat Min Mat Slots Evolved 2 | . . . 2 Power . | . . . . Propulsion 2 | . . . 2 Utility . | . . . . Weapon . | . . . . Parts Attached 34 | 7 6 8 13 Power 6 | 1 1 2 2 Engine 3 | 1 1 . 1 Core 3 | . . 2 1 Reactor . | . . . . Propulsion 11 | 2 . 2 7 Treads . | . . . . Leg . | . . . . Wheel 5 | 2 . . 3 Hover 2 | . . . 2 Flight 4 | . . 2 2 Utility 5 | 2 1 1 1 Device 2 | 1 . 1 . Storage 1 | 1 . . . Processor 1 | . 1 . . Hackware 1 | . . . 1 Protection . | . . . . Artifact . | . . . . Weapon 12 | 2 4 3 3 Energy Gun 5 | . 1 2 2 Energy Cannon . | . . . . Ballistic Gun 3 | 2 1 . . Ballistic Cannon . | . . . . Launcher 2 | . 2 . . Special Weapon . | . . . . Impact Weapon . | . . . . Slashing Weapon 1 | . . 1 . Piercing Weapon . | . . . . Special Melee Weapon 1 | . . . 1 Unidentified Prototypes 1 | . . . 1 Parts Lost 16 | . . 2 14 Power 2 | . . . 2 Propulsion 7 | . . . 7 Utility 2 | . . . 2 Weapon 5 | . . 2 3 Highest Loss Streak 8 | . . 1 8 To Critical Strikes . | . . . . Average Slot Usage (%) 88 | . 100 97 75 Engine 7 | . 14 8 2 Core 5 | . . 5 7 Wheel 10 | . 28 9 4 Flight 15 | . . 18 19 Device 4 | . 6 7 2 Storage 5 | . 14 7 . Processor 11 | . 7 14 10 Hackware 3 | . . . 8 Energy Gun 4 | . 9 4 1 Ballistic Gun 4 | . 14 3 . Launcher 3 | . 4 7 . Slashing Weapon 8 | . . 10 10 Special Melee Weapon 3 | . . . 7 Naked Turns 2 | . . . 2 Heaviest Build 16 | 14 15 16 12 Greatest Support 20 | 20 20 20 20 Greatest Overweight (x) 5 | . . 5 2 Average Overweight (x) . | . . . . Largest Inventory Capacity 8 | 8 8 8 5 Average Capacity 6 | 6 8 6 5 Most Carried 8 | 2 6 8 5 Average Carried 4 | 1 3 5 4 Final Capacity 8 | 8 8 5 5 Final Carried 5 | 2 5 5 4 Class Distribution -------------------- 65% | Mutant 34% | Scavenger-Mutant Dominant Class ---------------- Mutant | -10/Materials Mutant | -10/Mines Scavenger-Mutant | -9/Materials Resources | -11 -10 -10 -9 ----------- Run | Yrd Mat Min Mat Matter Collected 586 | 278 41 162 105 Remotely 35 | 10 25 . . Salvage Created 1104 | 101 266 240 497 Parts 63 | 5 13 17 28 Haulers Intercepted 1 | . 1 . . Recyclers Shooed 1 | . . . 1 Parts Field Recycled . | . . . . Retrieved Matter . | . . . . Parts Self-Destructed . | . . . . Prevented . | . . . . Kills | -11 -10 -10 -9 ------- Run | Yrd Mat Min Mat Combat Hostiles Destroyed 23 | . 4 10 9 Melee 14 | . . 6 8 Guns 5 | . 3 1 1 AOE 4 | . 1 3 . Classes Destroyed 10 | 2 4 1 3 Worker 3 | . 1 . 2 Builder 2 | . . . 2 Tunneler 1 | 1 . . . Hauler 1 | . 1 . . Recycler 2 | 1 . . 1 Operator 1 | . . . 1 Watcher 1 | . 1 . . Swarmer 9 | . . 6 3 Grunt 13 | . 4 4 5 Sentry 1 | . . . 1 Best Kill Streak 5 | 2 3 3 5 Combat Bots Only 3 | . 2 3 3 Max Kills in Single Turn 2 | 1 2 1 1 Gunslinging . | . . . . Exploded 1 | . 1 1 . Melee 1 | . . 1 1 Uniques/NPCs Destroyed . | . . . . Combat | -11 -10 -10 -9 -------- Run | Yrd Mat Min Mat Hostile Shots Fired 143 | . 12 47 84 Missed 35 | . 4 16 15 Damage Taken 1386 | . 180 376 830 Core 611 | . 42 167 402 Absorbed by Shields . | . . . . Core Remaining (%) 58 | 100 . 16 . Volleys Fired 34 | 2 19 10 3 Largest 2 | 2 2 2 1 Hottest 60 | 40 60 50 40 Shots Fired 54 | 4 34 13 3 Gun 49 | 4 33 9 3 Cannon . | . . . . Launcher 5 | . 1 4 . Special . | . . . . Kinetic 32 | 4 19 9 . Thermal . | . . . . Explosive 5 | . 1 4 . Electromagnetic 17 | . 14 . 3 Robot Hit Streak 8 | 2 7 7 8 Robot Miss Streak 2 | . 2 1 . Penetration Max . | . . . . Secondary Targets . | . . . . Shots Hit Robots 87 | 2 22 31 32 Core Hits 47 | 2 15 15 15 Critical Kills . | . . . . Critical Parts Destroyed . | . . . . Critical Strikes 6 | . 1 2 3 Corrupt 1 | . 1 . . Sever 5 | . . 2 3 Melee Attacks 56 | . . 21 35 Impact . | . . . . Slashing 56 | . . 21 35 Piercing . | . . . . Sneak Attacks 8 | . . 1 7 Combat Hostiles 1 | . . 1 . Follow-up Attacks . | . . . . Damage Inflicted 2876 | 26 426 1037 1387 Guns 371 | 26 243 57 45 Cannons . | . . . . Explosions 457 | . 183 274 . Melee 2032 | . . 706 1326 Ramming 16 | . . . 16 Kinetic 177 | 26 94 57 . Thermal 36 | . 36 . . Explosive 314 | . 40 274 . Electromagnetic 301 | . 256 . 45 Impact . | . . . . Slashing 2032 | . . 706 1326 Piercing . | . . . . Highest Corruption 1 | . . . 1 Average Corruption 1 | . . . 1 Corruption Purged . | . . . . Corruption Blocked . | . . . . Overload Shots . | . . . . Overflow Damage 152 | . . 44 108 Projectiles . | . . . . Explosions 8 | . . 8 . Melee 144 | . . 36 108 Knockbacks . | . . . . Impact . | . . . . Kinetic . | . . . . Secondary . | . . . . Self-Inflicted Damage 114 | . 93 15 6 Shots 3 | . 2 1 . Rammed 8 | . . . 8 Targets Rammed 8 | . . . 8 Kicked . | . . . . Crushed . | . . . . Highest Temperature 70 | . 70 11 23 Average Temperature 22 | . 26 8 12 Received Heat Transfer 528 | . 48 165 315 Siege Activations . | . . . . Robots Corrupted . | . . . . Combat Hostiles . | . . . . Parts Fried . | . . . . Impact Corruptions . | . . . . Robots Melted . | . . . . Combat Hostiles . | . . . . Parts Melted . | . . . . Heat Transferred 50 | . 50 . . Parts Sabotaged . | . . . . Parts Stolen . | . . . . Parts Stripped . | . . . . Power Chain Reactions 1 | . 1 . . Alert | -11 -10 -10 -9 ------- Run | Yrd Mat Min Mat Peak Influence 336 | 10 217 336 260 Initial 84 | . 6 84 74 Average 152 | 1 107 238 114 Maximum Alert Level 1 | . 1 1 1 Low Security (%) 66 | 100 94 40 73 Level 1 33 | . 5 59 26 Level 2 . | . . . . Level 3 . | . . . . Level 4 . | . . . . Level 5 . | . . . . High Security . | . . . . Max Security . | . . . . Squads Dispatched 2 | . 2 . . Investigation 1 | . 1 . . Extermination . | . . . . Reinforcement 1 | . 1 . . Assault . | . . . . Garrison . | . . . . Intercept . | . . . . Searches Triggered . | . . . . Construction Impeded . | . . . . Haulers Reinforced . | . . . . Active Scanning Responses . | . . . . Cargo Convoy Interrupts . | . . . . Stealth | -11 -10 -10 -9 --------- Run | Yrd Mat Min Mat Distress Signals 3 | . . . 3 Communications Jammed . | . . . . Distress Signals . | . . . . Times Spotted 47 | . 12 15 20 Peak Tracking Total 8 | . 3 3 8 Tactical Retreats 4 | . . 3 1 Traps | -11 -10 -10 -9 ------- Run | Yrd Mat Min Mat Traps Triggered 1 | . 1 . . Indirectly 1 | . 1 . . Trap Hack Attempts . | . . . . Triggered . | . . . . Disarmed . | . . . . Reprogrammed . | . . . . Reused . | . . . . Traps Extracted . | . . . . Installed . | . . . . Triggered . | . . . . Machines | -11 -10 -10 -9 ---------- Run | Yrd Mat Min Mat Machines Disabled 1 | . 1 . . Max in Single Turn 1 | . 1 . . Machines Repaired . | . . . . Machines Dismantled . | . . . . Machines Sabotaged . | . . . . Overloaded Fab Kills . | . . . . Hacking | -11 -10 -10 -9 --------- Run | Yrd Mat Min Mat Machines Accessed 5 | . 2 . 3 Terminals 4 | . 1 . 3 Fabricators . | . . . . Repair Stations 1 | . 1 . . Recycling Units . | . . . . Scanalyzers . | . . . . Garrison Access . | . . . . Total Hacks 6 | . 2 . 4 Successful 4 | . 2 . 2 Failed 2 | . . . 2 Catastrophic 1 | . . . 1 Database Lockouts . | . . . . Manual . | . . . . Terminals 5 | . 1 . 4 Fabricators . | . . . . Repair Stations 1 | . 1 . . Recycling Units . | . . . . Scanalyzers . | . . . . Garrison Access . | . . . . Terminal Hacks 3 | . 1 . 2 Record 1 | . . . 1 Locate Traps 1 | . 1 . . Registered Components 1 | . . . 1 Fabricator Hacks . | . . . . Repair Station Hacks 1 | . 1 . . Scan Component 1 | . 1 . . Recycling Unit Hacks . | . . . . Scanalyzer . | . . . . Garrison Access Hacks . | . . . . Unauthorized Hacks . | . . . . Terminals . | . . . . Fabricators . | . . . . Repair Stations . | . . . . Recycling Units . | . . . . Scanalyzers . | . . . . Garrison Access . | . . . . Data Cores Recovered 1 | . . . 1 Used . | . . . . Hacking Detections 3 | . 1 . 2 Full Trace Events . | . . . . Feedback Events . | . . . . Feedback Blocked . | . . . . Robot Schematics Acquired . | . . . . Robots Built . | . . . . Authchips . | . . . . Time . | . . . . Total Robot Build Rating . | . . . . Part Schematics Acquired . | . . . . Parts Built . | . . . . Authchips . | . . . . Time . | . . . . Total Part Build Rating . | . . . . Parts Repaired . | . . . . Time . | . . . . Parts Recycled . | . . . . Recycled Matter . | . . . . Retrieved Matter . | . . . . Retrieved Components . | . . . . Parts Scanalyzed . | . . . . Part Schematics Acquired . | . . . . Parts Damaged . | . . . . Bothacking | -11 -10 -10 -9 ------------ Run | Yrd Mat Min Mat Used RIF Installer . | . . . . Robots Hacked . | . . . . Non-combat . | . . . . Combat . | . . . . Robot Hacks Applied . | . . . . Relay Couplers Released . | . . . . Fabnet Peak Effective % . | . . . . Robots Rewired . | . . . . Allies Hacked . | . . . . Hacks Repelled . | . . . . Allies | -11 -10 -10 -9 -------- Run | Yrd Mat Min Mat Total Allies . | . . . . Largest Group . | . . . . Highest-Rated Group . | . . . . Highest-Rated Ally . | . . . . Total Orders . | . . . . Ally Attacks . | . . . . Total Damage . | . . . . Kills . | . . . . Allies Corrupted . | . . . . Allies Melted . | . . . . Intel | -11 -10 -10 -9 ------- Run | Yrd Mat Min Mat Robot Analysis Total . | . . . . Derelict Logs Recovered 2 | . . 2 . Drone Launches . | . . . . Drone Recoveries . | . . . . Exploration | -11 -10 -10 -9 ------------- Run | Yrd Mat Min Mat Turns Passed 1379 | 66 252 500 561 Spaces Moved 1013 | 59 215 367 372 Core 16 | 1 . 1 14 Treads . | . . . . Legs . | . . . . Wheels 505 | 58 215 149 83 Hover 41 | . . . 41 Flight 451 | . . 217 234 Fastest Speed 37 | 50 80 37 37 Average Speed 98 | 79 80 104 105 Slowest Speed 300 | 80 80 300 200 Overloaded Moves . | . . . . Propulsion Burnouts . | . . . . Robots Hopped . | . . . . Cave-ins Triggered . | . . . . Exploration Rate (%) 42 | 3 53 76 38 Regions Visited 3 Branch Regions 1 Pre-discovered Areas . | . . . . Known Exits Taken 2 | . 1 1 . Unknown Exits Taken 1 | 1 . . . Scrap Searched 2 | . . 2 . Spaces Dug . | . . . . Terrain Destroyed 39 | . 11 28 . Melee . | . . . . Projectile . | . . . . AOE 39 | . 11 28 . Terrain Rammed . | . . . . Walls Destroyed . | . . . . Machines Disabled . | . . . . Actions | -11 -10 -10 -9 --------- Run | Yrd Mat Min Mat Total 1263 | 70 267 443 483 Wait 86 | 1 19 28 38 Move 1010 | 58 214 366 372 Hop . | . . . . Pick Up 9 | 2 2 1 4 Fast Attach 28 | 7 2 7 12 Attach 6 | . 4 1 1 Detach 9 | . 6 3 . Swap . | . . . . Drop 17 | . 1 6 10 Fire 34 | 2 19 10 3 Melee 56 | . . 21 35 Ram 8 | . . . 8 Kick . | . . . . Crush . | . . . . Escape Stasis . | . . . . Rewire . | . . . . Trap . | . . . . Miscellaneous . | . . . . Route ------- -11/Scrapyard -10/Materials -10/Mines (discovered 2 exits: *Mat x2) -9/Materials (discovered 2 exits: *Mat / *Min) History --------- Turn | Location | Event 16 | -11/Scrapyard | Discovered new exit (range 16) 67 | -11/Scrapyard | Entered Materials 299 | -10/Materials | Discovered new exit (range 16) 319 | -10/Materials | Identified exit to Mines 319 | -10/Materials | Entered Mines 325 | -10/Mines | Build established: Mutant 443 | -10/Mines | A weapon hastily lodged in a ceiling crevice suddenly fell to the ground 578 | -10/Mines | Discovered new exit (range 7) 602 | -10/Mines | Core integrity fell below 50% 649 | -10/Mines | Identified exit to Materials 702 | -10/Mines | Learned Materials stockpile data 726 | -10/Mines | Learned 2 Materials zone layouts 783 | -10/Mines | Core integrity fell below 20% 801 | -10/Mines | Discovered exit to Materials (range 9) 819 | -10/Mines | Entered Materials 819 | -9/Materials | Evolved 2 slots: Propulsion x2 1106 | -9/Materials | Discovered new exit (range 16) 1144 | -9/Materials | Identified exit to Materials 1225 | -9/Materials | Lost 3 parts (1p2n) 1238 | -9/Materials | Build established: Scavenger-Mutant 1302 | -9/Materials | Discovered new exit (range 7) 1314 | -9/Materials | Identified exit to Mines 1315 | -9/Materials | Lost 3 parts (2n1w) 1343 | -9/Materials | Core integrity fell below 50% 1377 | -9/Materials | Core integrity fell below 20% 1380 | -9/Materials | Destroyed by Y-45 Defender with Heavy Assault Rifle Last Messages --------------- G-34 Mercenary destroyed. K-01 Serf collects debris. Flight Unit destroyed. K-01 Serf collects debris. Critical hit (Burn: +37). EM Pulse Gun destroyed. K-01 Serf collects debris. Slammed into G-47 Trooper. K-01 Serf collects debris. Slammed into G-47 Trooper. Wheel destroyed. Hacking Suite destroyed. Slammed into G-47 Trooper. Destabilizing: Core damaged (-16). Slammed into G-47 Trooper. Signal Interpreter destroyed. System corrupted by crushing effect (+1). K-01 Serf cleans the Fusion Modulator. Slammed into G-47 Trooper. Critical hit (Burn: +37). Map ----- +----------------------------------------------------+ | ?????????????????????????????????????????????????? | | ?????????????????????????????????????????????????? | | ??????????????##?????????????????????????????????? | | ???????????? ?????""?????????????????????????? | | ???????????? ???? ""????????????????????????? | | ??????????? ????? ????????????????????????? | | ??????????? ???##+#####???????????????????? | | ?????????? !![ #### #???????????????????? | | ?????????? ![! #???????????????????? | | ?????????? ![! #???????????????????? | | ?????????? ##########??????????? | | ???????????? #??????????? | | ??????????????"T" #??????????? | | ???????????? """ +??????????? | | ???????? #??????????? | | ???????? # #??????????? | | ???????????###+######### ##??????????? | | ???????????????????????# #???????????? | | ???????????????????????#*#### #???????????? | | ??????????????????######/#### #???????????? | | ??????????????????# k!k%=!# #### ##??????????? | | ??????????????????# """Y%## #" #??????????? | | ??????????????????# """!k## #"" #??????????? | | ??????????????????# """%%## #!! #??????????? | | ??????????????????# %## #"" > #??????????? | | ????????# @ ## #|| #??????????? | | """ ????????# " " g ## #"" #??????????? | | """"" ????????# "R" ## #" #??????????? | | """"" ????????# """ ## #### ##??###+##### | | """"" ????????########g## ##### % | | """ ?????????????# =! | | ?????????????# = | | ?????????????# =% | | ?????????????# ### | | ?????????????# #?# ############### | | ?????????????# #?#+??????????????# ### | | ?????????????# #?????????????????# #?? | | ##########?????????????# #??"??????????????# #?? | | ########???????????????# #? ???????????????# #?? | | # #???????????????# # ???????????????# #?? | | # #???????????????+ # ????????????????# #?? | | # """#???????????????# +?????????????????# #?? | | # """#???????????????# #?????????????????# #?? | | # """#???????????????# #?????????????????# #?? | | # #???????????????# #?????????????????#%### | | ###+#################### #########?????????# # | | [ #?????????# # | | [ #?????????# # | | #?????????# # | | ###+######+######+#### ###### #?????????# # | +----------------------------------------------------+ Best States ------------- Heat Dissipation 28 Energy Generation 14 Energy Capacity 250 Matter Stores 300 Matter Capacity 300 Sight Range 16 Terrain Scan Density 10 ECM Strength 1 Evasion (%) 62 Offensive Hacking 10 Item Schematics ----------------- None Robot Schematics ------------------ None Fabricated ------------ Nothing Alien Tech Used ----------------- None Achievements -------------- None Challenges ------------ None Game ------ Seed PowerLayeredDiverter Manual? 0 Play Time 00:21:47 Cumulative 6.8 hours Start 2024.04.09 @ 21:36:36 End 2024.04.10 @ 13:55:52 Sessions 1 Manual Loads 0 Difficulty Rogue Special Mode None Game No. 12 Rogue 12 Adventurer 0 Explorer 0 Win Type - Total 0 Types 0/0/0/0/0/0/0/0/0 Lore% 12 Gallery% 14 Achievement% 12 Wizard Run 0 Options --------- Layout 0 ASCII 0 Keyboard 1 Movement Numpad Keybinds 0 Fullscreen 1 Font 18/SmallcapsGlow Map View 76x50 Zoom Use 0% Tactical HUD 0 Map Filters NONE Filters NONE Steam 1 RUN: 24677347-22c0-44ce-9ce9-e60ad18bb772